bitfinex-derivatives/quotes_SOLF0:USTF0_20250924
["timestamp","ask_amount","ask_price","bid_price","bid_amount"]
[1758757207286,9.60920881,211.59,211.51,7.54]
[1758757207487,3.35505449,211.58,211.51,7.54]
[1758757207686,3.35505449,211.57,211.51,7.54]
[1758757207892,12.96490231,211.56,211.51,7.54]
[1758757208092,3.3556935,211.55,211.5,123.06]
[1758757208292,3.3556935,211.55,211.51,7.54]
[1758757208495,11.2356935,211.55,211.51,7.54]
[1758757208689,7.88,211.55,211.51,7.54]
[1758757208991,12.1326,211.54,211.51,7.54]
[1758757210989,13.86130881,211.56,211.5,115.54]
[1758757211193,3.35621215,211.55,211.5,115.54]
[1758757211391,13.86130881,211.56,211.5,123.08]
[1758757211587,7.60922851,211.55,211.5,115.54]
[1758757211892,4.2524,211.55,211.5,115.54]
[1758757212093,12.1324,211.55,211.51,7.54]
[1758757213095,7.88,211.54,211.51,7.54]
[1758757213395,12.1327,211.54,211.51,7.54]
[1758757213695,7.88,211.55,211.5,115.54]
[1758757214290,7.88,211.52,211.48,123.08]
[1758757215197,12.133,211.52,211.48,123.08]
[1758757216497,12.133,211.52,211.49,7.54]
[1758757217798,4.2533,211.5,211.49,7.54]
[1758757218596,12.1329,211.52,211.49,7.54]
[1758757219696,4.2532,211.51,211.49,7.54]
[1758757221497,4.2532,211.51,211.48,115.54]
[1758757221702,4.2532,211.51,211.5,7.54]
[1758757223399,4.2532,211.51,211.49,115.56]
[1758757223896,4.2532,211.51,211.49,123.1]
[1758757225896,4.2532,211.51,211.5,7.79]
[1758757227503,12.2032,211.51,211.49,115.56]
[1758757227697,1.72920881,211.51,211.42,7.79]
[1758757227900,1.72920881,211.46,211.43,123.35]
[1758757228099,7.95,211.46,211.43,123.35]
[1758757228296,9.67920881,211.46,211.43,123.35]
[1758757228596,7.95,211.43,211.4,7.79]
[1758757228804,1.72920881,211.44,211.4,41.04]
[1758757229000,1.72920881,211.44,211.41,7.79]
[1758757229196,1.72920881,211.44,211.4,41.04]
[1758757229500,9.67920881,211.44,211.41,7.79]
[1758757230201,7.95,211.5,211.41,7.79]
[1758757230403,3.35062199,211.49,211.41,9.51920881]
[1758757230599,1.72920881,211.51,211.41,9.51920881]
[1758757231103,9.67920881,211.51,211.42,7.79]
[1758757232304,4.2534,211.5,211.42,7.79]
[1758757232695,7.95,211.51,211.42,7.79]
[1758757232896,66.1353,211.59,211.44,7.79]
[1758757233100,1.72920881,211.55,211.46,7.79]
[1758757233303,1.72920881,211.57,211.48,7.79]
[1758757234209,5.98160881,211.55,211.48,7.79]
[1758757238400,4.2526,211.54,211.48,7.79]
[1758757239912,9.67920881,211.56,211.48,7.79]
[1758757240213,9.67920881,211.56,211.48,12.0435]
[1758757240415,7.95,211.56,211.49,7.79]
[1758757240714,5.98070881,211.59,211.51,4.2529]
[1758757240911,7.95,211.6,211.52,7.79]
[1758757241214,7.95,211.6,211.53,7.79]
[1758757241409,13.92990881,211.63,211.55,7.79]
[1758757241712,3.35385991,211.62,211.55,9.51920881]
[1758757241914,3.35385991,211.61,211.55,9.51920881]
[1758757242115,13.92990881,211.63,211.55,9.51920881]
[1758757242414,35.68,211.67,211.52,81.7]
[1758757242415,1.72920881,211.66,211.58,7.79]
[1758757242709,3.35442956,211.65,211.58,7.79]
[1758757242910,3.35442956,211.64,211.58,7.79]
[1758757243110,9.67920881,211.67,211.58,7.79]
[1758757243311,3.35408231,211.66,211.6,7.79]
[1758757243517,3.35408231,211.65,211.58,7.79]
[1758757243721,13.92910881,211.67,211.58,7.79]
[1758757243920,3.3542403,211.66,211.58,7.79]
[1758757244117,13.92910881,211.67,211.58,7.79]
[1758757244424,3.35389508,211.66,211.6,12.0411]
[1758757244719,12.1999,211.67,211.6,12.0411]
[1758757244918,3.3538077,211.66,211.6,12.0411]
[1758757245119,7.95,211.67,211.6,12.0411]
[1758757245416,4.2494,211.69,211.62,7.79]
[1758757245616,3.35251635,211.68,211.62,7.79]
[1758757245821,4.2494,211.69,211.62,7.79]
[1758757246018,3.35251635,211.68,211.62,7.79]
[1758757246222,4.2494,211.69,211.62,7.79]
[1758757246424,3.35205814,211.68,211.62,7.79]
[1758757246624,12.1994,211.69,211.62,7.79]
[1758757246825,3.352073,211.68,211.62,7.79]
[1758757247124,7.95,211.66,211.59,55.5]
[1758757248024,7.95,211.66,211.59,69.40343753]
[1758757248217,12.2002,211.66,211.59,69.40343753]
[1758757248826,12.2002,211.66,211.58,127.6615]
[1758757249027,4.2504,211.65,211.58,12.0415]
[1758757249728,7.95,211.66,211.58,12.0415]
[1758757251226,12.2002,211.66,211.58,12.0415]
[1758757253432,4.2504,211.65,211.58,7.79]
[1758757253934,4.2506,211.64,211.58,7.79]
[1758757254531,2.70114628,211.67,211.58,7.79]
[1758757254532,4.2508,211.63,211.58,7.79]
[1758757254738,7.48,211.62,211.54,11.6524]
[1758757255028,7.48,211.62,211.54,48.5124]
[1758757255233,7.48,211.62,211.54,7.4]
[1758757255436,7.48,211.6,211.54,7.4]
[1758757255935,4.2516,211.59,211.52,36.26]
[1758757256236,4.2516,211.59,211.53,7.4]
[1758757258936,7.48,211.61,211.53,7.4]
[1758757259133,4.251,211.62,211.53,7.4]
[1758757260436,10.18114628,211.67,211.55,7.4]
[1758757260635,3.38645317,211.66,211.56,7.82]
[1758757260837,7.48,211.67,211.56,7.82]
[1758757261136,3.38618004,211.66,211.56,7.82]
[1758757261438,7.48,211.67,211.56,7.82]
[1758757261640,3.38582577,211.66,211.56,7.82]
[1758757261837,7.48,211.67,211.56,7.82]
[1758757262137,3.38582675,211.66,211.56,7.82]
[1758757262440,4.2502,211.66,211.59,4.2513]
[1758757262641,4.2502,211.66,211.58,7.82]
[1758757263339,4.2502,211.66,211.58,12.0716]
[1758757264536,4.2504,211.65,211.58,12.0716]
[1758757264736,7.48,211.67,211.59,4.2514]
[1758757265141,7.48,211.67,211.58,7.82]
[1758757265542,7.48,211.67,211.6,4.2512]
[1758757265938,4.2502,211.66,211.58,12.0716]
[1758757266138,7.48,211.67,211.58,12.0716]
[1758757266334,2.70114628,211.7,211.58,12.0716]
[1758757266539,7.83,211.68,211.58,12.0716]
[1758757266740,7.83,211.66,211.58,12.0716]
[1758757267338,4.2504,211.65,211.58,12.0716]
[1758757267745,4.2506,211.64,211.58,12.0716]
[1758757273252,4.2509,211.62,211.56,7.82]
[1758757273445,4.2509,211.62,211.52,16.78780214]
[1758757273446,7.83,211.62,211.53,7.82]
[1758757273647,4.252,211.57,211.49,4.2534]
[1758757273946,7.83,211.57,211.49,4.2534]
[1758757274348,4.2525,211.55,211.47,12.0738]
[1758757274645,7.83,211.57,211.48,7.82]
[1758757276354,3.39457609,211.56,211.48,12.0736]
[1758757276553,12.0819,211.57,211.48,12.0736]
[1758757276754,3.39451886,211.56,211.48,12.0736]
[1758757276954,12.0819,211.57,211.48,12.0736]
[1758757277155,3.39451886,211.56,211.48,12.0736]
[1758757277354,12.0819,211.57,211.48,12.0736]
[1758757277657,3.39585312,211.56,211.48,12.0736]
[1758757277848,12.0819,211.57,211.48,12.0736]
[1758757278044,3.39585312,211.56,211.48,12.0736]
[1758757278352,12.0819,211.57,211.48,12.0736]
[1758757278554,3.39613375,211.56,211.48,12.0736]
[1758757278749,12.0819,211.57,211.48,127.6136]
[1758757279051,3.39613375,211.56,211.48,127.6136]
[1758757279353,11.22659598,211.55,211.48,7.82]
[1758757279555,7.83,211.55,211.48,7.82]
[1758757279746,2.70114628,211.56,211.45,17.54]
[1758757279747,7.83,211.53,211.45,17.54]
[1758757280555,7.64971464,211.52,211.45,17.54]
[1758757280760,4.2529,211.52,211.45,17.54]
[1758757281059,4.2533,211.51,211.45,17.54]
[1758757282158,7.83,211.53,211.46,7.82]
[1758757282355,7.83,211.61,211.47,7.82]
[1758757282561,3.39580217,211.6,211.5,7.82]
[1758757282760,3.39580217,211.59,211.56,4.2521]
[1758757282950,4.2507,211.64,211.57,7.82]
[1758757283151,3.39447917,211.63,211.57,7.82]
[1758757283351,3.39447917,211.62,211.56,4.2521]
[1758757283556,3.39447917,211.61,211.55,7.82]
[1758757284464,12.2617,211.59,211.52,40.36]
[1758757284663,3.39447917,211.58,211.52,40.36]
[1758757284860,4.2521,211.57,211.51,7.24]
[1758757286161,4.2515,211.59,211.51,7.24]
[1758757286355,3.42113397,211.58,211.51,7.24]
[1758757286557,8.01,211.63,211.52,2.70114628]
[1758757286857,3.42123281,211.62,211.53,7.24]
[1758757287057,3.42123281,211.61,211.53,7.24]
[1758757287360,3.42123281,211.6,211.54,4.2524]
[1758757287556,3.42123281,211.59,211.55,7.24]
[1758757287758,4.2512,211.61,211.55,7.24]
[1758757287958,3.42085768,211.6,211.55,4.2522]
[1758757288160,8.01,211.67,211.56,7.24]
[1758757288359,3.42050892,211.66,211.56,7.24]
[1758757288558,3.42050892,211.65,211.56,7.24]
[1758757288763,11.43050892,211.64,211.56,7.24]
[1758757289060,3.42050892,211.63,211.56,7.24]
[1758757289260,3.42050892,211.62,211.56,7.24]
[1758757289464,8.01,211.6,211.56,7.24]
[1758757289652,8.01,211.64,211.56,7.24]
[1758757289857,3.42058073,211.63,211.56,7.24]
[1758757290060,7.67168073,211.62,211.56,7.24]
[1758757290366,3.42058073,211.61,211.56,7.24]
[1758757290569,8.01,211.64,211.56,7.24]
[1758757290767,3.42088179,211.63,211.57,4.2517]
[1758757290960,3.42088179,211.62,211.58,7.24]
[1758757291257,3.42088179,211.61,211.58,7.24]
[1758757291464,12.2605,211.64,211.58,7.24]
[1758757291664,3.42082435,211.63,211.57,11.4917]
[1758757291861,3.42082435,211.62,211.58,7.24]
[1758757292060,12.2605,211.64,211.58,7.24]
[1758757292363,3.42073587,211.63,211.58,4.2516]
[1758757292562,4.2501,211.66,211.59,7.24]
[1758757292763,3.42084512,211.65,211.59,7.24]
[1758757292965,3.42084512,211.64,211.58,11.4916]
[1758757293167,3.42084512,211.63,211.58,4.2516]
[1758757293464,4.2501,211.66,211.59,7.24]
[1758757293664,3.4209925,211.65,211.59,7.24]
[1758757293866,11.4309925,211.64,211.59,7.24]
[1758757294062,3.4209925,211.63,211.58,4.2516]
[1758757294264,8.01,211.64,211.58,11.4916]
[1758757294466,3.42114242,211.63,211.59,7.24]
[1758757294666,8.01,211.64,211.59,7.24]
[1758757294866,3.42114242,211.63,211.58,4.2516]
[1758757295065,8.01,211.64,211.58,11.4916]
[1758757295366,3.42114242,211.63,211.59,7.24]
[1758757295563,8.01,211.64,211.59,7.24]
[1758757295769,3.42136489,211.63,211.59,7.24]
[1758757296070,8.01,211.64,211.59,7.24]
[1758757296372,3.42136538,211.63,211.58,4.2516]
[1758757296559,8.01,211.66,211.59,7.24]
[1758757296764,3.4215218,211.65,211.59,7.24]
[1758757296966,3.4215218,211.64,211.58,11.4916]
[1758757297162,3.4215218,211.63,211.58,4.2516]
[1758757297368,12.2602,211.66,211.58,11.4916]
[1758757297669,3.42168237,211.65,211.58,11.4916]
[1758757297870,3.42168237,211.64,211.58,11.4916]
[1758757298165,11.43168237,211.63,211.57,7.24]
[1758757298372,8.01,211.63,211.57,7.24]
[1758757298972,12.2608,211.63,211.57,7.24]
[1758757299574,3.42199174,211.62,211.56,11.492]
[1758757299874,4.2508,211.63,211.56,11.492]
[1758757300075,3.42199223,211.62,211.56,107.432]
[1758757300274,4.2508,211.63,211.56,11.492]
[1758757300475,3.42190125,211.62,211.56,11.492]
[1758757300774,4.2508,211.63,211.56,11.492]
[1758757300975,3.42190125,211.62,211.56,11.492]
[1758757301274,4.2508,211.63,211.56,11.492]
[1758757301476,3.42184091,211.62,211.56,11.492]
[1758757301671,4.2508,211.63,211.56,11.492]
[1758757301872,3.42184091,211.62,211.56,11.492]
[1758757302170,4.2508,211.63,211.56,11.492]
[1758757302371,3.42164137,211.62,211.56,11.492]
[1758757302571,4.2508,211.63,211.56,11.492]
[1758757302771,3.42177616,211.62,211.56,11.492]
[1758757302972,4.2508,211.63,211.56,11.492]
[1758757303275,3.42177616,211.62,211.57,4.2518]
[1758757303577,8.01,211.64,211.56,7.24]
[1758757303875,3.42154166,211.63,211.56,7.24]
[1758757304072,4.25,211.67,211.6,7.24]
[1758757304278,3.42135194,211.66,211.6,7.24]
[1758757304472,8.01,211.68,211.6,7.24]
[1758757304778,3.42042766,211.67,211.6,8.9684283]
[1758757304974,3.42042766,211.66,211.6,8.9684283]
[1758757305277,8.01,211.68,211.62,4.2508]
[1758757305467,3.42014875,211.67,211.62,4.2508]
[1758757305672,3.42014875,211.66,211.63,7.24]
[1758757305976,13.9879283,211.69,211.63,7.24]
[1758757306176,3.42014875,211.68,211.63,7.24]
[1758757306476,11.43014875,211.67,211.63,7.24]
[1758757306777,3.42014875,211.66,211.63,7.24]
[1758757307070,8.01,211.66,211.6,4.2512]
[1758757307265,8.01,211.66,211.6,108.6712]
[1758757308872,4.25,211.67,211.61,4.2509]
[1758757309076,4.25,211.67,211.61,7.24]
[1758757310176,4.25,211.67,211.62,4.2508]
[1758757310374,5.9779283,211.69,211.63,7.24]
[1758757310671,3.41860913,211.68,211.61,13.8186318]
[1758757310871,4.2487,211.73,211.67,4.2498]
[1758757311178,3.4180844,211.72,211.68,7.24]
[1758757311370,1.7284283,211.74,211.68,7.24]
[1758757311571,3.41592063,211.73,211.68,7.24]
[1758757311773,1.7284283,211.74,211.68,7.24]
[1758757312076,3.41592063,211.73,211.67,86.44]
[1758757312279,1.7284283,211.74,211.68,11.4896]
[1758757312576,12.2583,211.75,211.68,11.4896]
[1758757316175,1.7284283,211.78,211.68,9.0584283]
[1758757316380,3.40936801,211.77,211.68,9.0584283]
[1758757316579,1.7284283,211.78,211.68,9.0584283]
[1758757317177,1.7284283,211.78,211.71,4.249]
[1758757317481,1.7284283,211.78,211.72,7.33]
[1758757317678,137.56624659,211.79,211.72,7.33]
[1758757317880,7.4,211.79,211.73,4.2487]
[1758757318181,7.4,211.83,211.75,7.33]
[1758757318371,9.1284283,211.83,211.75,7.33]
[1758757318577,13.3752283,211.83,211.76,4.248]
[1758757318881,13.3752283,211.83,211.75,7.33]
[1758757319079,4.2471,211.82,211.75,7.33]
[1758757319278,1.7284283,211.81,211.75,7.33]
[1758757319681,4.2479,211.78,211.73,115.48]
[1758757319983,7.4,211.76,211.73,115.5]
[1758757320183,7.4,211.76,211.71,115.5]
[1758757320679,9.3084283,211.77,211.71,122.83]
[1758757320879,13.5564283,211.77,211.71,7.33]
[1758757321884,1.7284283,211.75,211.67,7.72]
[1758757322186,1.7284283,211.71,211.63,7.72]
[1758757322382,1.7284283,211.71,211.64,115.5]
[1758757322988,1.7284283,211.69,211.65,7.72]
[1758757323389,9.3084283,211.69,211.65,7.72]
[1758757325285,9.3084283,211.69,211.62,343.88]
[1758757325286,1.7284283,211.67,211.62,343.88]
[1758757325492,7.58,211.66,211.62,343.88]
[1758757325787,7.58,211.66,211.62,351.6]
[1758757326501,1.7284283,211.69,211.63,7.72]
[1758757326788,1.7284283,211.7,211.63,7.72]
[1758757327182,1.7284283,211.7,211.64,4.2505]
[1758757329288,1.7284283,211.7,211.63,7.72]
[1758757330286,5.9779283,211.7,211.63,7.72]
[1758757331987,5.9779283,211.7,211.63,11.9705]
[1758757333293,3.41544183,211.69,211.63,11.9705]
[1758757333496,5.9779283,211.7,211.63,11.9705]
[1758757333692,3.41544183,211.69,211.63,11.9705]
[1758757333892,5.9779283,211.7,211.63,11.9705]
[1758757334091,3.41544189,211.69,211.63,11.9705]
[1758757334291,5.9779283,211.7,211.63,11.9705]
[1758757334492,3.41596813,211.69,211.63,11.9705]
[1758757334692,5.9779283,211.7,211.63,11.9705]
[1758757334894,3.41596813,211.69,211.63,11.9705]
[1758757335193,1.7284283,211.73,211.65,7.72]
[1758757335394,3.41649972,211.72,211.66,115.48]
[1758757335586,9.3084283,211.73,211.66,115.48]
[1758757335786,7.58,211.7,211.66,115.48]
[1758757335996,7.58,211.7,211.66,123.2]
[1758757336192,1.7284283,211.71,211.66,115.48]
[1758757336492,1.7284283,211.71,211.68,7.72]
[1758757336889,1.7284283,211.71,211.64,7.72]
[1758757336890,9.3084283,211.71,211.64,7.72]
[1758757337094,7.58,211.7,211.67,115.48]
[1758757338194,9.3084283,211.71,211.64,7.72]
[1758757338396,1.7284283,211.69,211.65,115.48]
[1758757338596,3.41749405,211.68,211.66,7.72]
[1758757338896,3.41749405,211.68,211.65,115.48]
[1758757339099,3.41749405,211.68,211.66,7.72]
[1758757339898,3.41749405,211.68,211.65,115.48]
[1758757340202,10.99749405,211.68,211.65,115.48]
[1758757340403,7.58,211.68,211.65,115.48]
[1758757340799,1.7284283,211.69,211.65,115.48]
[1758757340999,7.58,211.67,211.65,115.48]
[1758757342398,1.7284283,211.68,211.66,7.72]
[1758757342602,1.7284283,211.68,211.65,123.2]
[1758757342999,1.7284283,211.68,211.65,7.72]
[1758757343194,1.7284283,211.68,211.66,7.72]
[1758757344007,1.7284283,211.68,211.65,115.48]
[1758757344305,1.7284283,211.68,211.65,122.8]
[1758757345802,5.9783283,211.68,211.65,115.48]
[1758757346003,3.42060626,211.67,211.65,115.48]
[1758757346203,13.8683283,211.68,211.65,115.48]
[1758757346399,3.42126101,211.67,211.65,115.48]
[1758757346604,13.8683283,211.68,211.65,115.48]
[1758757346804,3.42126101,211.67,211.65,115.48]
[1758757346998,1.7284283,211.68,211.61,7.32]
[1758757347205,11.31129361,211.67,211.63,7.32]
[1758757347404,3.42129361,211.66,211.63,7.32]
[1758757348203,7.67149361,211.66,211.63,7.32]
[1758757348407,4.2502,211.66,211.63,7.32]
[1758757349511,1.7284283,211.68,211.62,115.48]
[1758757349709,3.4228944,211.67,211.62,115.48]
[1758757349904,1.7284283,211.68,211.63,7.32]
[1758757350109,3.42271935,211.67,211.63,7.32]
[1758757350410,5.9782283,211.68,211.62,119.7307]
[1758757350601,3.42281505,211.67,211.62,119.7307]
[1758757350800,5.9782283,211.68,211.62,127.0507]
[1758757351010,3.42281505,211.67,211.63,7.32]
[1758757351311,5.9782283,211.68,211.63,7.32]
[1758757351511,3.42291036,211.67,211.63,7.32]
[1758757351711,5.9782283,211.68,211.62,119.7307]
[1758757351912,3.42290987,211.67,211.63,7.32]
[1758757352205,5.9782283,211.68,211.62,119.7307]
[1758757352410,3.42291097,211.67,211.63,7.32]
[1758757352610,5.9782283,211.68,211.62,119.7307]
[1758757352811,15.56303628,211.67,211.63,7.32]
[1758757353113,7.89,211.67,211.63,7.32]
[1758757353909,7.89,211.67,211.62,115.48]
[1758757354104,7.89,211.67,211.63,7.32]
[1758757354311,1.7284283,211.68,211.63,7.32]
[1758757354513,3.42337154,211.67,211.63,7.32]
[1758757354808,7.89,211.71,211.63,9.0484283]
[1758757355009,3.42291814,211.7,211.63,9.0484283]
[1758757355210,3.42291814,211.69,211.63,9.0484283]
[1758757355516,7.89,211.71,211.63,9.0484283]
[1758757355715,3.42313334,211.7,211.63,9.0484283]
[1758757355912,3.42313334,211.69,211.63,9.0484283]
[1758757356215,12.1392,211.71,211.65,4.2502]
[1758757356415,3.42320675,211.7,211.67,7.32]
[1758757356604,3.42320675,211.69,211.66,115.48]
[1758757356808,4.2492,211.71,211.67,7.32]
[1758757357008,3.42320625,211.7,211.67,7.32]
[1758757357210,3.42320625,211.69,211.67,7.32]
[1758757357411,4.2492,211.71,211.67,7.32]
[1758757357715,3.42338225,211.7,211.67,7.32]
[1758757357915,3.42338225,211.69,211.67,7.32]
[1758757358116,4.2492,211.71,211.67,7.32]
[1758757358316,3.42355754,211.7,211.67,7.32]
[1758757358517,3.42355754,211.69,211.67,7.32]
[1758757358713,4.2492,211.71,211.67,7.32]
[1758757358919,3.42363291,211.7,211.66,119.73]
[1758757359118,4.2488,211.73,211.67,7.32]
[1758757359119,3.42363291,211.69,211.67,7.32]
[1758757359319,1.7284283,211.73,211.67,7.32]
[1758757359512,3.42389716,211.72,211.66,119.73]
[1758757359709,7.67309716,211.71,211.67,7.32]
[1758757359909,3.42389716,211.7,211.66,115.48]
[1758757360114,3.42389716,211.69,211.66,115.48]
[1758757360317,3.42389716,211.68,211.67,7.32]
[1758757360517,3.4241866,211.68,211.66,115.48]
[1758757360716,4.2492,211.71,211.67,7.32]
[1758757361020,3.4241866,211.7,211.66,115.48]
[1758757361218,3.4241866,211.69,211.67,7.32]
[1758757361418,3.4241866,211.68,211.67,7.32]
[1758757361618,3.4241866,211.69,211.67,7.32]
[1758757362016,3.4241866,211.69,211.66,115.48]
[1758757362418,4.2495,211.7,211.66,115.48]
[1758757362419,3.4241866,211.68,211.67,7.32]
[1758757362714,3.4241866,211.69,211.67,7.32]
[1758757362919,3.4241866,211.68,211.67,7.32]
[1758757363115,3.4241866,211.68,211.66,115.48]
[1758757363320,4.2495,211.7,211.66,115.48]
[1758757363521,3.42771641,211.69,211.67,7.32]
[1758757363820,3.42745347,211.68,211.67,7.32]
[1758757364017,3.42745347,211.68,211.66,115.48]
[1758757364212,12.1396,211.69,211.66,115.48]
[1758757364415,3.43047007,211.68,211.66,115.48]
[1758757364621,3.43047007,211.67,211.66,115.48]
[1758757365122,3.43047007,211.67,211.66,122.8]
[1758757365618,3.43047007,211.67,211.62,4.2509]
[1758757365824,3.43047007,211.66,211.64,7.32]
[1758757366024,3.43300163,211.65,211.64,7.32]
[1758757367324,3.43300163,211.65,211.64,122.8]
[1758757369626,3.43300163,211.65,211.64,7.32]
[1758757369827,11.32300163,211.65,211.64,115.48]
[1758757371324,11.32300163,211.65,211.62,115.46]
[1758757371522,3.43300163,211.64,211.62,122.78]
[1758757371722,3.43300163,211.63,211.62,122.78]
[1758757376129,3.43300163,211.63,211.62,7.32]
[1758757376325,3.43300163,211.63,211.62,122.8]
[1758757381425,7.7,211.72,211.63,7.89]
[1758757381635,3.43023409,211.71,211.65,7.89]
[1758757381823,7.7,211.69,211.66,115.48]
[1758757382029,3.43023409,211.68,211.66,115.48]
[1758757382236,3.43023409,211.67,211.66,115.48]
[1758757382436,3.43023409,211.67,211.66,123.37]
[1758757383938,3.43023409,211.67,211.66,123.35]
[1758757390243,5.22144073,211.76,211.66,115.46]
[1758757390445,3.42596063,211.75,211.67,7.89]
[1758757390640,3.42596063,211.74,211.68,115.46]
[1758757390841,3.42596063,211.73,211.69,115.46]
[1758757391043,3.42596063,211.72,211.71,7.89]
[1758757391238,3.42596063,211.72,211.71,123.35]
[1758757391847,7.7,211.71,211.64,7.89]
[1758757392038,7.7,211.69,211.65,123.35]
[1758757392243,3.42596063,211.68,211.66,29.5]
[1758757392445,3.42596063,211.67,211.66,29.5]
[1758757392838,3.42596063,211.67,211.65,7.89]
[1758757393145,3.42596063,211.66,211.59,7.89]
[1758757393344,2.70082169,211.68,211.52,410.015]
[1758757393345,4.2508,211.63,211.6,7.89]
[1758757393649,3.4269448,211.62,211.61,37.3]
[1758757394248,7.7,211.64,211.61,37.3]
[1758757394450,3.42674507,211.63,211.61,37.3]
[1758757394746,7.7,211.64,211.61,37.3]
[1758757394935,3.42674507,211.63,211.61,37.3]
[1758757395139,7.7,211.64,211.61,37.3]
[1758757395335,7.67737893,211.63,211.61,37.3]
[1758757395543,4.2509,211.63,211.61,37.3]
[1758757395744,7.7,211.69,211.62,7.89]
[1758757395947,3.42644575,211.68,211.62,7.89]
[1758757396244,3.42644575,211.67,211.62,7.89]
[1758757396547,3.42644575,211.66,211.62,7.89]
[1758757396744,3.42644575,211.65,211.62,7.89]
[1758757396948,3.42644575,211.64,211.61,37.3]
[1758757397143,5.22144073,211.72,211.62,7.89]
[1758757397343,3.42551496,211.71,211.62,7.89]
[1758757397551,3.42551496,211.7,211.62,7.89]
[1758757397848,3.42551496,211.69,211.62,7.89]
[1758757398043,3.42551496,211.68,211.62,7.89]
[1758757398242,3.42551496,211.67,211.62,4.2508]
[1758757398438,3.42551496,211.66,211.63,7.89]
[1758757398643,10.40082169,211.73,211.63,7.89]
[1758757398846,3.42552558,211.72,211.63,7.89]
[1758757399045,3.42552558,211.71,211.63,7.89]
[1758757399251,13.82634727,211.7,211.63,7.89]
[1758757399547,3.42552558,211.69,211.63,7.89]
[1758757399744,11.12552558,211.68,211.62,67.44]
[1758757400051,7.67552558,211.67,211.63,7.89]
[1758757400248,3.42552558,211.66,211.62,67.44]
[1758757400448,3.42552558,211.65,211.63,7.89]
[1758757400645,4.25,211.67,211.63,7.89]
[1758757400948,3.42595909,211.66,211.63,7.89]
[1758757401149,3.42595909,211.65,211.63,7.89]
[1758757401343,4.25,211.67,211.63,7.89]
[1758757401545,3.42600372,211.66,211.62,67.44]
[1758757401844,3.42600372,211.65,211.62,67.44]
[1758757402045,4.25,211.67,211.62,67.44]
[1758757402245,3.42605578,211.66,211.63,7.89]
[1758757402439,3.42605578,211.65,211.63,7.89]
[1758757402639,4.25,211.67,211.63,7.89]
[1758757402850,3.42605529,211.66,211.63,7.89]
[1758757403149,3.42605529,211.65,211.63,7.89]
[1758757403337,3.42605529,211.64,211.63,7.89]
[1758757410252,3.42605529,211.64,211.63,117.49]
[1758757411858,3.42605529,211.64,211.63,7.89]
[1758757412154,3.42605529,211.64,211.63,123.33]
[1758757414360,3.42605529,211.64,211.59,4.2514]
[1758757414564,7.27,211.64,211.6,123.09]
[1758757414955,7.27,211.64,211.6,7.65]
[1758757415162,11.5206,211.64,211.61,115.44]
[1758757415364,3.419957,211.63,211.61,115.44]
[1758757415561,4.2506,211.64,211.61,115.44]
[1758757415764,10.68984456,211.63,211.61,115.44]
[1758757415965,7.27,211.63,211.61,115.44]
[1758757417964,7.27,211.63,211.6,7.65]
[1758757418169,7.27,211.63,211.61,115.44]